fUST/lending_fUST_20250423
["ID","MTS","AMOUNT","RATE_DAILY","PERIOD"]
[358772459,1745421042546,-500.0,0.00019178,2]
[358772461,1745421042557,-500.0,0.00019178,2]
[358772463,1745421042567,-438.73471292,0.00019178,2]
[358772465,1745421042577,-500.0,0.00019178,2]
[358772467,1745421042586,-500.0,0.00019178,2]
[358772469,1745421042596,-500.0,0.00019178,2]
[358772471,1745421042605,-1314.6,0.00019178,2]
[358772473,1745421042615,-500.0,0.00019178,2]
[358772475,1745421042624,-500.0,0.00019178,2]
[358772477,1745421042634,-500.0,0.00019178,2]
[358772493,1745421042644,-500.0,0.00019178,2]
[358772496,1745421042799,-500.0,0.00019178,2]
[358772498,1745421042810,-500.0,0.00019178,2]
[358772500,1745421042820,-500.0,0.00019178,2]
[358772502,1745421042829,-500.0,0.00019178,2]
[358772504,1745421042839,-516.7,0.00019178,2]
[358772507,1745421042850,-500.0,0.00019178,2]
[358772510,1745421042860,-500.0,0.00019178,2]
[358772513,1745421042870,-500.0,0.00019178,2]
[358772517,1745421042881,-500.0,0.00019178,2]
[358772520,1745421042891,-500.0,0.00019178,2]
[358772523,1745421042900,-500.0,0.00019178,2]
[358772526,1745421042910,-500.0,0.00019178,2]
[358772529,1745421042920,-500.0,0.00019178,2]
[358772532,1745421042929,-500.0,0.00019178,2]
[358772535,1745421042939,-323.85785274,0.00019178,2]
[358772538,1745421042949,-500.0,0.00019178,2]
[358772541,1745421042958,-500.0,0.00019178,2]
[358772544,1745421042968,-736.53,0.00019178,2]
[358772547,1745421042977,-500.0,0.00019178,2]
[358772550,1745421042987,-500.0,0.00019178,2]
[358772553,1745421042998,-500.0,0.00019178,2]
[358772555,1745421043009,-500.0,0.00019178,2]
[358772557,1745421043019,-500.0,0.00019178,2]
[358772559,1745421043029,-502.11319614,0.00019178,2]
[358772561,1745421043039,-500.0,0.00019178,2]
[358772563,1745421043049,-500.0,0.00019178,2]
[358772565,1745421043059,-500.0,0.00019178,2]
[358772567,1745421043068,-500.0,0.00019178,2]
[358772569,1745421043078,-550.93,0.00019178,2]
[358772571,1745421043089,-500.0,0.00019178,2]
[358772573,1745421043098,-500.0,0.00019178,2]
[358772575,1745421043108,-505.98,0.00019178,2]
[358772577,1745421043118,-503.78161768,0.00019178,2]
[358772579,1745421043127,-500.0,0.00019178,2]
[358772581,1745421043136,-505.27351544,0.00019178,2]
[358772583,1745421043145,-1032.63,0.00019178,2]
[358772585,1745421043155,-500.0,0.00019178,2]
[358772587,1745421043164,-270.90232192,0.00019178,2]
[358772590,1745421043174,-500.0,0.00019178,2]
[358772593,1745421043184,-500.0,0.00019178,2]
[358772596,1745421043193,-500.0,0.00019178,2]
[358772598,1745421043203,-500.0,0.00019178,2]
[358772600,1745421043212,-500.0,0.00019178,2]
[358772602,1745421043222,-636.07293388,0.00019178,2]
[358772604,1745421043231,-500.0,0.00019178,2]
[358772606,1745421043240,-500.0,0.00019178,2]
[358772609,1745421043251,-500.0,0.00019178,2]
[358772610,1745421043261,-500.0,0.00019178,2]
[358772613,1745421043271,-654.47,0.00019178,2]
[358772615,1745421043284,-500.0,0.00019178,2]
[358772616,1745421043294,-500.0,0.00019178,2]
[358772619,1745421043305,-500.0,0.00019178,2]
[358772621,1745421043315,-500.0,0.00019178,2]
[358772623,1745421043325,-500.0,0.00019178,2]
[358772625,1745421043335,-454.34564179,0.00019178,2]
[358772627,1745421043344,-500.0,0.00019178,2]
[358772629,1745421043354,-500.0,0.00019178,2]
[358772631,1745421043363,-500.0,0.00019178,2]
[358772632,1745421043373,-500.0,0.00019178,2]
[358772634,1745421043383,-500.0,0.00019178,2]
[358772637,1745421043394,-500.0,0.00019178,2]
[358772638,1745421043403,-500.0,0.00019178,2]
[358772641,1745421043413,-503.38905232,0.00019178,2]
[358772643,1745421043423,-578.42,0.00019178,2]
[358772645,1745421043433,-500.0,0.00019178,2]
[358772647,1745421043443,-504.23468143,0.00019178,2]
[358772649,1745421043454,-500.0,0.00019178,2]
[358772651,1745421043465,-639.77,0.00019178,2]
[358772653,1745421043475,-500.0,0.00019178,2]
[358772656,1745421043485,-500.0,0.00019178,2]
[358772659,1745421043495,-500.0,0.00019178,2]
[358772662,1745421043506,-500.0,0.00019178,2]
[358772665,1745421043516,-528.91,0.00019178,2]
[358772668,1745421043527,-479.06924905,0.00019178,2]
[358772670,1745421043536,-500.0,0.00019178,2]
[358772671,1745421043546,-500.0,0.00019178,2]
[358772674,1745421043556,-500.0,0.00019178,2]
[358772676,1745421043566,-500.0,0.00019178,2]
[358772678,1745421043576,-500.0,0.00019178,2]
[358772680,1745421043586,-500.0,0.00019178,2]
[358772682,1745421043595,-500.0,0.00019178,2]
[358772684,1745421043605,-500.0,0.00019178,2]
[358772686,1745421043614,-500.0,0.00019178,2]
[358772688,1745421043626,-500.0,0.00019178,2]
[358772690,1745421043635,-500.0,0.00019178,2]
[358772692,1745421043645,-500.0,0.00019178,2]
[358772694,1745421043654,-500.0,0.00019178,2]
[358772695,1745421043664,-518.64295893,0.00019178,2]
[358772698,1745421043674,-509.69301849,0.00019178,2]
[358772700,1745421043684,-665.67,0.00019178,2]
[358772701,1745421043694,-500.0,0.00019178,2]
[358772703,1745421043704,-500.0,0.00019178,2]
[358772706,1745421043716,-500.0,0.00019178,2]
[358772708,1745421043727,-500.0,0.00019178,2]
[358772709,1745421043737,-650.06,0.00019178,2]
[358772711,1745421043749,-500.0,0.00019178,2]
[358772714,1745421043759,-500.0,0.00019178,2]
[358772716,1745421043769,-500.0,0.00019178,2]
[358772718,1745421043779,-500.0,0.00019178,2]
[358772720,1745421043788,-500.0,0.00019178,2]
[358772722,1745421043798,-500.0,0.00019178,2]
[358772724,1745421043808,-500.0,0.00019178,2]
[358772726,1745421043818,-500.0,0.00019178,2]
[358772728,1745421043827,-500.0,0.00019178,2]
[358772730,1745421043837,-500.0,0.00019178,2]
[358772732,1745421043847,-500.0,0.00019178,2]
[358772734,1745421043856,-500.0,0.00019178,2]
[358772736,1745421043866,-500.0,0.00019178,2]
[358772738,1745421043875,-500.0,0.00019178,2]
[358772740,1745421043884,-500.0,0.00019178,2]
[358772742,1745421043894,-500.0,0.00019178,2]
[358772744,1745421043903,-524.49087671,0.00019178,2]
[358772745,1745421043913,-500.0,0.00019178,2]
[358772747,1745421043923,-559.28,0.00019178,2]
[358772750,1745421043933,-636.4,0.00019178,2]
[358772751,1745421043942,-500.0,0.00019178,2]
[358772754,1745421043952,-500.0,0.00019178,2]
[358772756,1745421043962,-500.0,0.00019178,2]
[358772758,1745421043972,-500.0,0.00019178,2]
[358772760,1745421043981,-500.0,0.00019178,2]
[358772762,1745421043992,-500.0,0.00019178,2]
[358772764,1745421044005,-500.0,0.00019178,2]
[358772766,1745421044015,-500.0,0.00019178,2]
[358772768,1745421044025,-503.88281696,0.00019178,2]
[358772770,1745421044034,-1488.91,0.00019178,2]
[358772772,1745421044044,-13981.35,0.00019178,2]
[358772774,1745421044054,-500.0,0.00019178,2]
[358772776,1745421044063,-500.0,0.00019178,2]
[358772778,1745421044073,-500.0,0.00019178,2]
[358772780,1745421044085,-500.0,0.00019178,2]
[358772782,1745421044100,-500.0,0.00019178,2]
[358772784,1745421044110,-500.0,0.00019178,2]
[358772786,1745421044121,-562.35,0.00019178,2]
[358772788,1745421044132,-500.0,0.00019178,2]
[358772790,1745421044144,-724.51,0.00019178,2]
[358772792,1745421044155,-1357.99,0.00019178,2]
[358772794,1745421044167,-269.99311184,0.00019178,2]
[358772796,1745421044176,-500.0,0.00019178,2]
[358772798,1745421044186,-500.0,0.00019178,2]
[358772800,1745421044199,-500.0,0.00019178,2]
[358772802,1745421044214,-500.0,0.00019178,2]
[358772804,1745421044225,-500.0,0.00019178,2]
[358772806,1745421044237,-4001.49,0.00019178,2]
[358772808,1745421044247,-500.0,0.00019178,2]
[358772810,1745421044258,-513.23936796,0.00019178,2]
[358772812,1745421044269,-760.23,0.00019178,2]
[358772814,1745421044281,-650.45,0.00019178,2]
[358772816,1745421044290,-500.0,0.00019178,2]
[358772818,1745421044306,-929.33,0.00019178,2]
[358772820,1745421044317,-583.16,0.00019178,2]
[358772823,1745421044328,-500.0,0.00019178,2]
[358772824,1745421044338,-500.0,0.00019178,2]
[358772826,1745421044348,-1460.33,0.00019178,2]
[358772829,1745421044359,-518.73,0.00019178,2]
[358772831,1745421044371,-500.0,0.00019178,2]
[358772832,1745421044380,-500.0,0.00019178,2]
[358772835,1745421044391,-500.0,0.00019178,2]
[358772837,1745421044403,-12838.96,0.00019178,2]
[358772839,1745421044413,-500.0,0.00019178,2]
[358772841,1745421044425,-500.0,0.00019178,2]
[358772843,1745421044435,-500.0,0.00019178,2]
[358772845,1745421044445,-500.0,0.00019178,2]
[358772847,1745421044455,-500.0,0.00019178,2]
[358772849,1745421044469,-595.08,0.00019178,2]
[358772851,1745421044479,-541.41,0.00019178,2]
[358772853,1745421044489,-500.0,0.00019178,2]
[358772855,1745421044500,-728.78,0.00019178,2]
[358772857,1745421044510,-639.29047748,0.00019178,2]
[358772859,1745421044520,-151.0,0.00019178,2]
[358772861,1745421044529,-509.8894734,0.00019178,2]
[358772864,1745421044540,-502.21560576,0.00019178,2]
[358772866,1745421044550,-1104.92,0.00019178,2]
[358772880,1745421044678,-500.0,0.00019178,2]
[358772882,1745421044690,-515.16082315,0.00019178,2]
[358772884,1745421044700,-4691.99,0.00019178,2]
[358772886,1745421044711,-500.0,0.00019178,2]
[358772888,1745421044721,-1377.8,0.00019178,2]
[358772890,1745421044732,-5354.31,0.00019178,2]
[358772892,1745421044742,-500.0,0.00019178,2]
[358772894,1745421044756,-500.0,0.00019178,2]
[358772896,1745421044766,-500.0,0.00019178,2]
[358772898,1745421044776,-500.0,0.00019178,2]
[358772900,1745421044786,-1350.35,0.00019178,2]
[358772902,1745421044796,-500.0,0.00019178,2]
[358772904,1745421044806,-500.0,0.00019178,2]
[358772906,1745421044816,-500.0,0.00019178,2]
[358772908,1745421044826,-500.0,0.00019178,2]
[358772910,1745421044836,-710.76,0.00019178,2]
[358772912,1745421044846,-808.73,0.00019178,2]
[358772914,1745421044856,-2480.68,0.00019178,2]
[358772917,1745421044865,-1479.43,0.00019178,2]
[358772918,1745421044875,-500.0,0.00019178,2]
[358772920,1745421044885,-500.0,0.00019178,2]
[358772922,1745421044895,-500.0,0.00019178,2]
[358772924,1745421044905,-500.0,0.00019178,2]
[358772926,1745421044916,-500.0,0.00019178,2]
[358772928,1745421044926,-500.0,0.00019178,2]
[358772930,1745421044936,-500.0,0.00019178,2]
[358772932,1745421044947,-500.0,0.00019178,2]
[358772934,1745421044958,-500.0,0.00019178,2]
[358772936,1745421044969,-500.0,0.00019178,2]
[358772938,1745421044980,-583.4,0.00019178,2]
[358772940,1745421044990,-504.2464914,0.00019178,2]
[358772942,1745421045004,-500.0,0.00019178,2]
[358772944,1745421045017,-500.0,0.00019178,2]
[358772946,1745421045027,-500.0,0.00019178,2]
[358772948,1745421045037,-500.0,0.00019178,2]
[358772950,1745421045046,-500.0,0.00019178,2]
[358772952,1745421045056,-506.65,0.00019178,2]
[358772955,1745421045066,-606.14,0.00019178,2]
[358772957,1745421045076,-1455.5,0.00019178,2]
[358772959,1745421045085,-500.0,0.00019178,2]
[358772961,1745421045094,-1183.05,0.00019178,2]
[358772962,1745421045104,-500.0,0.00019178,2]
[358772965,1745421045113,-500.0,0.00019178,2]
[358772967,1745421045124,-500.0,0.00019178,2]
[358772969,1745421045134,-500.0,0.00019178,2]
[358772971,1745421045143,-500.0,0.00019178,2]
[358772973,1745421045153,-861.21,0.00019178,2]
[358772975,1745421045163,-500.0,0.00019178,2]
[358772977,1745421045172,-609.34,0.00019178,2]
[358772979,1745421045182,-501.42,0.00019178,2]
[358772981,1745421045193,-1059.4,0.00019178,2]
[358772983,1745421045204,-500.0,0.00019178,2]
[358772985,1745421045214,-638.65,0.00019178,2]
[358772986,1745421045224,-500.0,0.00019178,2]
[358772989,1745421045234,-500.0,0.00019178,2]
[358772990,1745421045244,-1839.79,0.00019178,2]
[358772992,1745421045258,-1017.22,0.00019178,2]
[358772994,1745421045268,-500.0,0.00019178,2]
[358772996,1745421045278,-500.0,0.00019178,2]
[358772998,1745421045287,-151.0,0.00019178,2]
[358773000,1745421045298,-5564.75,0.00019178,2]
[358773003,1745421045308,-3162.62,0.00019178,2]
[358773005,1745421045318,-1094.14,0.00019178,2]
[358773007,1745421045328,-500.0,0.00019178,2]
[358773008,1745421045338,-151.0,0.00019178,2]
[358773010,1745421045347,-500.0,0.00019178,2]
[358773012,1745421045357,-151.0,0.00019178,2]
[358773014,1745421045366,-500.0,0.00019178,2]
[358773016,1745421045376,-500.0,0.00019178,2]
[358773018,1745421045385,-151.0,0.00019178,2]
[358773020,1745421045395,-500.0,0.00019178,2]
[358773022,1745421045405,-500.0,0.00019178,2]
[358773024,1745421045415,-500.0,0.00019178,2]
[358773027,1745421045425,-500.0,0.00019178,2]
[358773028,1745421045434,-500.0,0.00019178,2]
[358773031,1745421045444,-750.9,0.00019178,2]
[358773033,1745421045454,-500.0,0.00019178,2]
[358773035,1745421045467,-500.0,0.00019178,2]
[358773037,1745421045476,-500.0,0.00019178,2]
[358773039,1745421045486,-500.0,0.00019178,2]
[358773041,1745421045496,-895.9,0.00019178,2]
[358773043,1745421045510,-500.0,0.00019178,2]
[358773044,1745421045520,-500.0,0.00019178,2]
[358773046,1745421045529,-500.0,0.00019178,2]
[358773048,1745421045539,-1003.15,0.00019178,2]
[358773050,1745421045549,-1275.08,0.00019178,2]
[358773052,1745421045558,-500.0,0.00019178,2]
[358773054,1745421045568,-500.0,0.00019178,2]
[358773057,1745421045577,-500.0,0.00019178,2]
[358773059,1745421045587,-500.0,0.00019178,2]
[358773061,1745421045596,-500.0,0.00019178,2]
[358773063,1745421045606,-500.0,0.00019178,2]
[358773065,1745421045616,-500.0,0.00019178,2]
[358773067,1745421045625,-500.0,0.00019178,2]
[358773068,1745421045635,-500.0,0.00019178,2]
[358773070,1745421045644,-568.19528183,0.00019178,2]
[358773072,1745421045653,-1260.77,0.00019178,2]
[358773074,1745421045663,-500.0,0.00019178,2]
[358773076,1745421045672,-2960.3,0.00019178,2]
[358773079,1745421045682,-500.0,0.00019178,2]
[358773082,1745421045692,-500.0,0.00019178,2]
[358773084,1745421045702,-786.77,0.00019178,2]
[358773086,1745421045712,-500.0,0.00019178,2]
[358773088,1745421045721,-1069.02,0.00019178,2]
[358773090,1745421045732,-500.0,0.00019178,2]
[358773093,1745421045742,-500.0,0.00019178,2]
[358773094,1745421045756,-500.0,0.00019178,2]
[358773096,1745421045766,-500.0,0.00019178,2]
[358773098,1745421045775,-500.0,0.00019178,2]
[358773099,1745421045785,-500.0,0.00019178,2]
[358773100,1745421045794,-4630.58,0.00019178,2]
[358773101,1745421045804,-1011.14,0.00019178,2]
[358773102,1745421045813,-569.83328367,0.00019178,2]
[358773103,1745421045823,-500.0,0.00019178,2]
[358773104,1745421045833,-579.76,0.00019178,2]
[358773105,1745421045843,-635.21,0.00019178,2]
[358773106,1745421045852,-500.0,0.00019178,2]
[358773107,1745421045863,-151.0,0.00019178,2]
[358773108,1745421045873,-917.94,0.00019178,2]
[358773109,1745421045882,-673.49,0.00019178,2]
[358773110,1745421045892,-771.99,0.00019178,2]
[358773111,1745421045902,-547.86919917,0.00019178,2]
[358773112,1745421045912,-500.0,0.00019178,2]
[358773113,1745421045922,-823.86,0.00019178,2]
[358773114,1745421045933,-155.18436246,0.00019178,2]
[358773115,1745421045943,-500.0,0.00019178,2]
[358773116,1745421045954,-500.0,0.00019178,2]
[358773117,1745421045964,-500.0,0.00019178,2]
[358773118,1745421045975,-151.0,0.00019178,2]
[358773119,1745421045985,-515.46,0.00019178,2]
[358773120,1745421045995,-503.96840619,0.00019178,2]
[358773121,1745421046009,-500.0,0.00019178,2]
[358773122,1745421046019,-2927.1,0.00019178,2]
[358773124,1745421046029,-500.0,0.00019178,2]
[358773125,1745421046038,-500.0,0.00019178,2]
[358773127,1745421046048,-500.0,0.00019178,2]
[358773129,1745421046058,-500.0,0.00019178,2]
[358773131,1745421046067,-500.0,0.00019178,2]
[358773132,1745421046077,-500.0,0.00019178,2]
[358773134,1745421046087,-500.0,0.00019178,2]
[358773136,1745421046097,-500.0,0.00019178,2]
[358773138,1745421046107,-153.13690097,0.00019178,2]
[358773140,1745421046117,-151.0,0.00019178,2]
[358773142,1745421046127,-859.51,0.00019178,2]
[358773144,1745421046136,-151.0,0.00019178,2]
[358773146,1745421046147,-500.0,0.00019178,2]
[358773148,1745421046156,-500.0,0.00019178,2]
[358773150,1745421046166,-500.0,0.00019178,2]
[358773152,1745421046176,-500.0,0.00019178,2]
[358773154,1745421046186,-500.0,0.00019178,2]
[358773156,1745421046196,-500.0,0.00019178,2]
[358773158,1745421046206,-500.0,0.00019178,2]
[358773160,1745421046215,-151.0,0.00019178,2]
[358773163,1745421046228,-151.0,0.00019178,2]
[358773165,1745421046237,-500.0,0.00019178,2]
[358773167,1745421046247,-500.0,0.00019178,2]
[358773168,1745421046259,-500.0,0.00019178,2]
[358773170,1745421046268,-151.0,0.00019178,2]
[358773172,1745421046278,-6046.69,0.00019178,2]
[358773186,1745421046399,-500.0,0.00019178,2]
[358773188,1745421046410,-500.0,0.00019178,2]
[358773190,1745421046420,-500.0,0.00019178,2]
[358773192,1745421046430,-500.0,0.00019178,2]
[358773194,1745421046440,-500.0,0.00019178,2]
[358773196,1745421046449,-500.0,0.00019178,2]
[358773198,1745421046460,-602.51,0.00019178,2]
[358773200,1745421046470,-1921.9,0.00019178,2]
[358773202,1745421046481,-1921.9,0.00019178,2]
[358773204,1745421046490,-1921.9,0.00019178,2]
[358773206,1745421046504,-1921.9,0.00019178,2]
[358773208,1745421046513,-1921.9,0.00019178,2]
[358773210,1745421046523,-1921.9,0.00019178,2]
[358773212,1745421046534,-1921.9,0.00019178,2]
[358773214,1745421046544,-1079.96,0.00019178,2]
[358773215,1745421046553,-500.0,0.00019178,2]
[358773216,1745421046563,-1921.9,0.00019178,2]
[358773217,1745421046573,-1921.9,0.00019178,2]
[358773218,1745421046583,-500.0,0.00019178,2]
[358773219,1745421046592,-1921.9,0.00019178,2]
[358773220,1745421046602,-602.48,0.00019178,2]
[358773221,1745421046612,-198.0,0.00019178,2]
[358773222,1745421046621,-1921.9,0.00019178,2]
[358773223,1745421046631,-1921.9,0.00019178,2]
[358773224,1745421046640,-500.0,0.00019178,2]
[358773225,1745421046650,-1921.9,0.00019178,2]
[358773226,1745421046659,-500.0,0.00019178,2]
[358773227,1745421046669,-1921.9,0.00019178,2]
[358773228,1745421046678,-500.0,0.00019178,2]
[358773229,1745421046689,-1921.9,0.00019178,2]
[358773230,1745421046698,-1921.9,0.00019178,2]
[358773231,1745421046707,-1921.9,0.00019178,2]
[358773232,1745421046717,-500.0,0.00019178,2]
[358773233,1745421046728,-151.0,0.00019178,2]
[358773234,1745421046737,-1921.9,0.00019178,2]
[358773235,1745421046750,-1921.9,0.00019178,2]
[358773236,1745421046760,-1921.9,0.00019178,2]
[358773237,1745421046769,-1921.9,0.00019178,2]
[358773239,1745421046779,-1057.851985,0.00019178,2]
[358773240,1745421046790,-232.77955801,0.00019178,2]
[358773241,1745421046800,-1921.9,0.00019178,2]
[358773242,1745421046810,-504.5686658,0.00019178,2]
[358773243,1745421046819,-1921.9,0.00019178,2]
[358773244,1745421046829,-1921.96097795,0.00019178,2]
[358773245,1745421046839,-1384.37,0.00019178,2]
[358773246,1745421046849,-500.0,0.00019178,2]
[358773247,1745421046859,-500.0,0.00019178,2]
[358773248,1745421046869,-500.0,0.00019178,2]
[358773249,1745421046878,-1057.851985,0.00019178,2]
[358773250,1745421046888,-554.31,0.00019178,2]
[358773251,1745421046898,-908.18,0.00019178,2]
[358773252,1745421046908,-500.0,0.00019178,2]
[358773253,1745421046918,-500.0,0.00019178,2]
[358773254,1745421046928,-500.0,0.00019178,2]
[358773255,1745421046937,-500.0,0.00019178,2]
[358773256,1745421046948,-500.0,0.00019178,2]
[358773257,1745421046960,-500.0,0.00019178,2]
[358773258,1745421046971,-500.0,0.00019178,2]
[358773259,1745421046980,-500.0,0.00019178,2]
[358773260,1745421046990,-500.0,0.00019178,2]
[358773261,1745421047001,-500.0,0.00019178,2]
[358773262,1745421047010,-500.0,0.00019178,2]
[358773263,1745421047020,-500.0,0.00019178,2]
[358773264,1745421047030,-500.0,0.00019178,2]
[358773265,1745421047040,-500.0,0.00019178,2]
[358773266,1745421047050,-508.55,0.00019178,2]
[358773268,1745421047060,-830.66,0.00019178,2]
[358773269,1745421047070,-500.0,0.00019178,2]
[358773270,1745421047080,-500.0,0.00019178,2]
[358773271,1745421047090,-500.0,0.00019178,2]
[358773272,1745421047099,-500.0,0.00019178,2]
[358773273,1745421047109,-500.0,0.00019178,2]
[358773274,1745421047119,-500.0,0.00019178,2]
[358773275,1745421047128,-500.0,0.00019178,2]
[358773276,1745421047137,-500.0,0.00019178,2]
[358773277,1745421047147,-500.0,0.00019178,2]
[358773278,1745421047157,-500.0,0.00019178,2]
[358773279,1745421047166,-500.0,0.00019178,2]
[358773280,1745421047176,-500.0,0.00019178,2]
[358773281,1745421047186,-500.0,0.00019178,2]
[358773282,1745421047195,-500.0,0.00019178,2]
[358773283,1745421047205,-500.0,0.00019178,2]
[358773284,1745421047214,-500.0,0.00019178,2]
[358773285,1745421047224,-659.37,0.00019178,2]
[358773286,1745421047233,-500.0,0.00019178,2]
[358773287,1745421047243,-500.0,0.00019178,2]
[358773288,1745421047254,-300.0,0.00019178,2]
[358773289,1745421047264,-253.00301032,0.00019215,2]
[358773290,1745421047273,-160.0,0.0001925,2]
[358773291,1745421047283,-160.0,0.0001925,2]
[358773292,1745421047293,-839.95942076,0.0001925,2]
[358773293,1745421047303,-160.0,0.0001925,2]
[358773294,1745421047313,-12573.79847128,0.0001925,2]
[358773295,1745421047323,-160.0,0.0001925,2]
[358773296,1745421047333,-160.0,0.0001925,2]
[358773297,1745421047342,-160.0,0.0001925,2]
[358773298,1745421047352,-420.82143104,0.0001925,2]
[358773299,1745421047362,-160.0,0.0001925,2]
[358773300,1745421047371,-107891.32735457,0.00019257,2]
[358773301,1745421047381,-1756.67,0.00019271,2]
[358773302,1745421047390,-500.0,0.00019271,2]
[358773303,1745421047399,-340.464834,0.00019275,2]
[358773304,1745421047409,-340.464834,0.00019275,2]
[358773305,1745421047419,-151.0,0.00019275,2]
[358773306,1745421047429,-253.00301032,0.00019284,2]
[358773307,1745421047439,-300.0,0.0001929,2]
[358773308,1745421047449,-250.0,0.000193,2]
[358773309,1745421047461,-250.0,0.000193,2]
[358773310,1745421047471,-345.0,0.000193,2]
[358773311,1745421047481,-172.66420164,0.00019329,2]
[358773312,1745421047491,-151.0,0.00019329,2]
[358773313,1745421047504,-151.0,0.00019329,2]
[358773314,1745421047513,-151.0,0.00019329,2]
[358773315,1745421047523,-289.8158653,0.00019329,2]
[358773316,1745421047533,-253.00301032,0.00019352,2]
[358773317,1745421047543,-177.2424345,0.000194,2]
[358773318,1745421047554,-570.496,0.0001944,2]
[358773319,1745421047564,-151.0,0.0001944,2]
[358773320,1745421047574,-1756.67,0.00019451,2]
[358773321,1745421047584,-1756.67,0.00019451,2]
[358773322,1745421047593,-1756.67,0.00019451,2]
[358773323,1745421047603,-1756.67,0.00019451,2]
[358773324,1745421047613,-1756.67,0.00019451,2]
[358773326,1745421047623,-1756.67,0.00019451,2]
[358773327,1745421047633,-1756.67,0.00019451,2]
[358773328,1745421047643,-1756.67,0.00019451,2]
[358773329,1745421047653,-1756.67,0.00019451,2]
[358773330,1745421047662,-1756.86635854,0.00019451,2]
[358773331,1745421047671,-500.0,0.00019451,2]
[358773332,1745421047681,-500.0,0.00019451,2]
[358773333,1745421047690,-500.0,0.00019451,2]
[358773334,1745421047700,-500.0,0.00019451,2]
[358773335,1745421047709,-500.0,0.00019451,2]
[358773336,1745421047719,-500.0,0.00019451,2]
[358773337,1745421047729,-500.0,0.00019451,2]
[358773338,1745421047739,-500.0,0.00019451,2]
[358773339,1745421047748,-500.0,0.00019451,2]
[358773340,1745421047758,-188.91682397,0.00019451,2]
[358773341,1745421047768,-151.0,0.00019451,2]
[358773342,1745421047779,-151.0,0.00019451,2]
[358773343,1745421047789,-151.0,0.00019451,2]
[358773344,1745421047799,-1057.851985,0.00019451,2]
[358773345,1745421047808,-1057.851985,0.00019451,2]
[358773346,1745421047818,-160.82567716,0.00019451,2]
[358773347,1745421047828,-607.88829984,0.00019452,2]
[358773348,1745421047837,-151.0,0.00019452,2]
[358773349,1745421047958,-500.0,0.00019452,2]
[358773350,1745421047968,-500.0,0.00019452,2]
[358773351,1745421047978,-151.0,0.00019452,2]
[358773352,1745421047987,-500.0,0.00019452,2]
[358773353,1745421047997,-151.0,0.00019452,2]
[358773354,1745421048008,-500.0,0.00019452,2]
[358773355,1745421048018,-151.0,0.00019452,2]
[358773356,1745421048028,-151.0,0.00019452,2]
[358773357,1745421048038,-151.0,0.00019452,2]
[358773358,1745421048048,-151.0,0.00019452,2]
[358773359,1745421048058,-151.0,0.00019452,2]
[358773360,1745421048068,-151.0,0.00019452,2]